bitfinex/quotes_ETHUSD_20240722
["timestamp","ask_amount","ask_price","bid_price","bid_amount"]
[1721646313927,2.85951,3497.1,3496.6,2.85991]
[1721646314168,0.02741185,3497.0,3496.6,2.85991]
[1721646315428,2.3513,3496.9,3496.3,2.86015]
[1721646315629,2.3513,3496.9,3495.9,5.19379668]
[1721646315630,2.88714465,3496.8,3496.2,2.86023]
[1721646315829,2.85985,3496.7,3496.2,2.86023]
[1721646316124,2.85985,3496.7,3496.0,2.86037]
[1721646316125,2.3513,3496.5,3496.0,2.86037]
[1721646316332,0.02666942,3496.4,3496.0,2.86037]
[1721646317944,1.018,3496.3,3495.8,2.86054]
[1721646318442,2.86038,3496.1,3495.4,6.61815761]
[1721646318640,2.4463,3496.1,3495.4,2.86088]
[1721646318958,2.88738671,3496.0,3495.4,2.86088]
[1721646319131,2.86054,3495.9,3495.2,2.86099]
[1721646319333,2.88687345,3495.8,3495.2,2.86099]
[1721646319558,3.90487345,3495.8,3495.1,2.86113]
[1721646320644,3.90487345,3495.8,3495.2,2.86106]
[1721646321033,4.73352927,3495.8,3495.2,2.86106]
[1721646322834,3.71552927,3495.8,3495.2,2.86106]
[1721646323879,0.02625345,3495.8,3495.2,2.86106]
[1721646324173,2.8605,3495.9,3495.2,2.86106]
[1721646324335,0.02693473,3495.7,3495.0,5.72233]
[1721646324535,2.86065,3495.7,3495.1,2.86113]
[1721646324736,0.02668577,3495.6,3495.1,2.86113]
[1721646325777,2.88743577,3495.6,3495.0,2.8612]
[1721646325936,2.2661,3495.5,3495.0,2.8612]
[1721646326679,0.02603401,3495.4,3495.0,2.8612]
[1721646328635,0.02603401,3495.4,3494.8,2.86135]
[1721646328841,0.02603401,3495.4,3494.7,2.3165]
[1721646328842,2.88697401,3495.4,3494.7,2.3165]
[1721646329147,3.79016841,3495.4,3494.8,2.86137]
[1721646329878,1.94722841,3495.4,3494.6,2.86152]
[1721646330080,1.04403401,3495.4,3494.6,2.86152]
[1721646330234,2.3182,3495.3,3494.6,2.86152]
[1721646330434,2.86116,3495.1,3494.4,2.86166]
[1721646330640,2.86116,3495.1,3494.5,2.86163]
[1721646330933,0.02587142,3495.0,3494.5,2.86163]
[1721646331781,0.07921249,3495.0,3494.5,2.86163]
[1721646332073,2.94045249,3495.0,3494.5,2.86163]
[1721646332275,5.32671,3494.9,3494.3,2.86175]
[1721646332675,2.94054103,3494.8,3494.3,2.86175]
[1721646332977,2.94054103,3494.8,3494.0,2.862]
[1721646332978,2.94054103,3494.8,3494.1,2.86189]
[1721646333483,2.94054103,3494.8,3494.2,2.86186]
[1721646335978,3.86905813,3494.8,3494.2,2.86186]
[1721646336480,6.73051813,3494.8,3494.2,2.86186]
[1721646336779,3.86905813,3494.8,3494.2,2.86186]
[1721646336942,6.73052813,3494.8,3494.2,2.86186]
[1721646337146,6.73052813,3494.8,3494.0,3.88]
[1721646337147,1.018,3494.6,3493.8,2.86217]
[1721646337385,2.86168,3494.5,3493.8,5.72432]
[1721646337589,2.94128457,3494.5,3493.8,2.86215]
[1721646337881,2.94128457,3494.5,3493.6,3.88033]
[1721646337882,2.435,3494.4,3493.6,2.86233]
[1721646338043,2.86197,3494.1,3493.6,2.86233]
[1721646338239,3.87997,3494.1,3493.6,2.86233]
[1721646338480,0.07939506,3494.0,3493.6,2.86233]
[1721646338638,0.07939506,3494.0,3493.4,5.79901955]
[1721646338835,0.07939506,3494.0,3493.5,2.86244]
[1721646340557,5.28944506,3494.0,3493.5,2.86244]
[1721646340777,5.28944506,3494.0,3493.4,0.07403955]
[1721646340778,3.34433657,3494.0,3493.4,0.07403955]
[1721646341265,3.88017,3493.9,3493.4,0.07403955]
[1721646341460,0.07919101,3493.8,3493.4,0.07403955]
[1721646344977,0.07919101,3493.8,3493.4,2.93651955]
[1721646345283,0.07919101,3493.8,3493.5,2.86245]
[1721646345616,0.0785884,3493.7,3493.5,2.86245]
[1721646345984,2.348,3494.0,3493.5,2.86245]
[1721646346176,0.07860779,3493.6,3493.5,2.86245]
[1721646346509,0.07859365,3493.6,3493.5,2.86245]
[1721646346682,2.348,3494.0,3493.5,2.86245]
[1721646346869,0.07870513,3493.9,3493.5,2.86245]
[1721646347202,0.07870513,3493.9,3493.4,0.07403955]
[1721646347203,0.07870513,3493.9,3493.6,2.86237]
[1721646350370,0.07870513,3493.9,3493.7,2.86227]
[1721646351579,0.07870513,3493.9,3493.8,2.86221]
[1721646351869,3.015,3495.1,3493.8,3.567821]
[1721646351870,2.4743,3494.8,3493.8,3.567821]
[1721646352122,2.4544,3495.3,3494.8,2.86134]
[1721646352419,5.31541,3495.3,3494.6,5.72303]
[1721646352575,1.375335,3495.2,3494.7,2.86147]
[1721646352918,2.4544,3495.3,3494.8,2.86138]
[1721646353224,2.4544,3495.3,3495.0,2.86122]
[1721646354371,2.4544,3495.3,3495.2,2.86106]
[1721646354577,1.018,3495.7,3495.3,2.86097]
[1721646354578,2.314,3495.7,3495.3,2.86097]
[1721646354771,2.314,3495.7,3495.2,2.86105]
[1721646355017,0.619257,3495.6,3495.2,2.86105]
[1721646355687,3.479987,3495.6,3495.0,2.86116]
[1721646356424,0.619257,3495.6,3495.1,2.86114]
[1721646356708,0.619257,3495.6,3495.2,2.86106]
[1721646357088,4.018,3496.0,3495.4,2.86089]
[1721646357292,2.4089,3496.1,3495.6,2.86068]
[1721646357713,2.4089,3496.1,3495.4,2.86085]
[1721646357879,2.8605,3495.9,3495.2,2.86103]
[1721646358075,2.8605,3495.9,3495.0,2.8612]
[1721646358076,2.8605,3495.9,3495.3,2.86098]
[1721646358317,3.775277,3495.9,3495.3,2.86098]
[1721646359084,1.08961166,3495.8,3495.1,2.8611]
[1721646359315,2.8607,3495.7,3495.2,2.86104]
[1721646359564,0.07154938,3495.6,3495.2,2.86104]
[1721646360065,1.018,3495.8,3495.2,2.86104]
[1721646360265,0.07151228,3495.5,3495.2,2.86104]
[1721646360553,0.0715329,3495.4,3495.2,2.86104]
[1721646360754,2.86066,3495.7,3495.1,2.86112]
[1721646360918,0.07149579,3495.3,3495.1,2.86112]
[1721646361256,2.86066,3495.7,3495.1,2.86112]
[1721646361420,0.07094701,3495.2,3495.1,2.86112]
[1721646361618,0.572116,3495.6,3495.1,2.86112]
[1721646361860,0.07094701,3495.2,3495.1,2.86112]
[1721646362153,0.572116,3495.6,3495.1,2.86112]
[1721646362554,0.572116,3495.6,3495.2,2.86106]
[1721646362932,2.8605,3495.9,3495.1,2.86112]
[1721646363286,2.3762,3495.5,3494.9,2.86129]
[1721646363475,2.3762,3495.5,3494.7,2.86142]
[1721646363476,2.86095,3495.4,3494.7,2.86142]
[1721646363773,2.86108,3495.2,3494.5,2.86159]
[1721646363938,2.86108,3495.2,3494.3,2.86178]
[1721646363939,2.86119,3495.1,3494.3,2.86173]
[1721646364137,2.3747,3494.9,3494.4,2.86169]
[1721646364662,2.3747,3494.9,3494.5,2.86161]
[1721646365371,2.3747,3494.9,3494.2,2.86185]
[1721646366151,2.3747,3494.9,3494.4,2.86167]
[1721646366346,2.3747,3494.9,3494.5,2.86162]
[1721646366553,2.3747,3494.9,3494.6,2.86155]
[1721646366992,2.3747,3494.9,3494.4,2.86167]
[1721646367743,2.3747,3494.9,3494.5,2.86162]
[1721646368075,2.3747,3494.9,3494.4,2.86167]
[1721646368758,2.3747,3494.9,3494.4,2.86165]
[1721646369074,2.3747,3494.9,3494.4,2.86164]
[1721646369275,2.3747,3494.9,3494.5,2.86162]
[1721646371741,2.3747,3494.9,3494.6,2.86155]
[1721646372240,2.3747,3494.9,3494.4,2.86167]
[1721646372463,2.3747,3494.9,3494.5,2.86161]
[1721646373165,2.3747,3494.9,3494.3,2.86173]
[1721646373677,2.3747,3494.9,3494.4,2.8617]
[1721646374185,0.07077726,3494.8,3494.4,2.8617]
[1721646376774,0.07077726,3494.8,3493.8,5.615791]
[1721646376941,0.07077726,3494.8,3494.2,2.8618]
[1721646377152,0.07077726,3494.8,3494.2,2.86184]
[1721646377552,0.07077726,3494.8,3493.9,3.4236591]
[1721646378082,0.07077726,3494.8,3494.4,2.86164]
[1721646378600,0.07077726,3494.8,3494.5,2.86162]
[1721646379043,0.07077726,3494.8,3494.6,2.86155]
[1721646380880,0.07077726,3494.8,3494.7,2.86147]
[1721646381096,0.07077726,3494.8,3494.7,5.72294]
[1721646381468,2.4052,3495.2,3494.7,2.86147]
[1721646381677,0.07106674,3494.8,3494.7,2.86147]
[1721646381898,2.4052,3495.2,3494.8,2.86136]
[1721646382116,2.4052,3495.2,3495.0,2.86122]
[1721646382311,2.4183,3495.5,3495.0,3.88022]
[1721646382621,2.83651996,3495.8,3495.3,2.86094]
[1721646382787,1.311701,3495.6,3495.0,1.019]
[1721646382991,1.311701,3495.6,3494.9,2.86127]
[1721646383675,1.311701,3495.6,3495.1,2.86113]
[1721646383879,1.311701,3495.6,3495.1,5.7222]
[1721646384095,1.311701,3495.6,3495.2,2.86106]
[1721646384421,7.42,3495.7,3495.4,2.8609]
[1721646384613,7.42,3495.7,3495.5,2.86081]
[1721646385077,7.42,3495.7,3495.3,2.86092]
[1721646386288,7.42,3495.7,3495.2,2.86105]
[1721646386486,1.072901,3495.6,3495.2,2.86105]
[1721646389073,0.07130983,3495.5,3495.2,2.86105]
[1721646391015,0.07130983,3495.5,3495.2,2.86099]
[1721646391318,0.07130983,3495.5,3495.3,2.86098]
[1721646391822,0.44851996,3495.8,3495.4,2.86084]
[1721646391987,0.07127271,3495.4,3495.2,3.88002]
[1721646392185,0.44851996,3495.8,3495.3,2.86098]
[1721646392400,1.61033096,3495.8,3495.2,3.88003]
[1721646392927,1.61033096,3495.8,3495.4,2.86087]
[1721646395597,1.61033096,3495.8,3495.2,2.86103]
[1721646395799,4.61033096,3495.8,3495.2,2.86103]
[1721646396225,2.4474,3495.7,3495.0,2.86116]
[1721646396420,9.52190732,3495.7,3495.1,2.86113]
[1721646399105,9.52190732,3495.7,3495.1,5.72222]
[1721646399415,9.52190732,3495.7,3495.1,2.86109]
[1721646399826,9.52190732,3495.7,3495.0,2.86117]
[1721646400740,12.38263732,3495.7,3495.0,2.86117]
[1721646400947,9.52190732,3495.7,3495.0,5.72234]
[1721646401909,1.48648854,3495.6,3495.0,5.62234]
[1721646402240,1.48648854,3495.6,3495.1,2.86114]
[1721646402703,1.48648854,3495.6,3494.6,2.3073]
[1721646402913,2.4286,3495.2,3494.7,2.86142]
[1721646403824,2.4286,3495.2,3494.7,5.72283]
[1721646404025,0.06883473,3495.1,3494.8,2.86138]
[1721646406517,0.06883473,3495.1,3494.6,2.86148]
[1721646407810,0.06883473,3495.1,3494.7,2.86146]
[1721646409349,0.06883473,3495.1,3494.7,2.86142]
[1721646410010,2.92998473,3495.1,3494.5,3.88059]
[1721646410609,2.92998473,3495.1,3494.5,3.88058]
[1721646411009,2.92998473,3495.1,3494.5,6.74216]
[1721646411432,2.92998473,3495.1,3494.5,3.88058]
[1721646411844,3.28547897,3495.1,3494.5,3.88058]
[1721646412630,2.86123,3495.0,3494.5,2.86158]
[1721646413019,0.06875993,3494.9,3494.5,2.86158]
[1721646414849,0.06875993,3494.9,3494.5,3.88058]
[1721646416380,0.06875993,3494.9,3494.6,2.86155]
[1721646416691,0.0687228,3494.8,3494.6,2.86155]
[1721646417044,0.85062642,3495.0,3494.6,2.86155]
[1721646417244,0.06868567,3494.7,3494.6,2.86155]
[1721646417485,3.21664424,3495.1,3494.6,2.86155]
[1721646417648,0.06867807,3494.7,3494.6,2.86155]
[1721646417845,3.21664424,3495.1,3494.6,2.86155]
[1721646418043,0.06867807,3494.7,3494.6,2.86155]
[1721646418289,0.85062642,3495.0,3494.6,2.86155]
[1721646418592,0.06867807,3494.7,3494.6,2.86155]
[1721646419048,3.21664424,3495.1,3494.6,2.86155]
[1721646419250,0.06867807,3494.7,3494.6,2.86155]
[1721646419443,3.21664424,3495.1,3494.6,2.86155]
[1721646419673,0.35549424,3495.1,3494.6,5.36112]
[1721646419986,0.35549424,3495.1,3494.5,1.019]
[1721646419987,2.86099,3495.3,3494.7,2.86143]
[1721646420188,2.86099,3495.3,3494.7,2.86141]
[1721646420400,2.86099,3495.3,3494.8,2.86137]
[1721646420546,2.4338,3495.4,3494.8,2.86137]
[1721646420943,2.861,3495.3,3494.8,2.86137]
[1721646421185,1.12337154,3495.2,3494.8,2.86137]
[1721646421493,1.12337154,3495.2,3494.9,2.8613]
[1721646424715,1.12337154,3495.2,3495.0,2.86121]
[1721646424895,0.44856157,3495.3,3495.0,2.86121]
[1721646426492,0.44856157,3495.3,3494.8,2.86131]
[1721646427020,0.44856157,3495.3,3494.9,2.86125]
[1721646428383,3.30954157,3495.3,3494.8,2.86138]
[1721646428563,0.44856157,3495.3,3494.9,2.86129]
[1721646428770,1.06631369,3495.2,3494.9,2.86129]
[1721646429134,0.44856157,3495.3,3495.1,2.86112]
[1721646429733,2.4152,3495.6,3495.1,2.86112]
[1721646429734,3.61592228,3495.6,3495.1,2.86112]
[1721646429870,2.4152,3495.6,3495.1,2.86112]
[1721646430071,5.4152,3495.6,3495.5,2.86082]
[1721646430308,0.44853743,3495.9,3495.7,2.86065]
[1721646430484,1.49875697,3496.2,3495.8,2.86057]
[1721646430485,1.20072228,3496.2,3495.8,2.86057]
[1721646430697,9.8597,3496.3,3495.8,2.86057]
[1721646430698,1.54194725,3496.1,3495.8,2.86057]
[1721646431043,1.54194725,3496.1,3495.9,2.86048]
[1721646431201,11.06042228,3496.3,3496.0,2.86041]
[1721646431509,7.42,3496.3,3496.0,2.86041]
[1721646431668,1.20072228,3496.5,3496.4,2.86008]
[1721646431869,1.20072228,3496.8,3496.4,2.86008]
[1721646432075,2.2501,3496.9,3496.5,2.85993]
[1721646432335,1.23695348,3496.8,3496.4,3.87903]
[1721646432482,7.42,3497.1,3496.4,1.019]
[1721646432810,7.42,3497.1,3496.7,2.85983]
[1721646434182,0.06723019,3497.0,3496.7,2.85983]
[1721646435133,0.06723019,3497.0,3496.5,2.85993]
[1721646435496,5.10953,3497.2,3496.6,2.85991]
[1721646435733,0.06703922,3496.9,3496.6,2.85991]
[1721646436029,0.898781,3497.1,3496.6,2.85991]
[1721646436233,0.06700213,3496.8,3496.4,1.019]
[1721646436544,0.06696504,3496.7,3496.5,2.85998]
[1721646436692,0.06696504,3496.7,3496.6,2.85992]
[1721646436894,2.2501,3497.2,3496.7,2.85983]
[1721646438525,2.2501,3497.2,3496.4,3.87905]
[1721646438526,5.10953,3497.2,3496.4,3.87905]
[1721646438727,2.85951,3497.1,3496.4,2.86005]
[1721646438895,3.370463,3497.1,3496.5,2.86]
[1721646446432,2.85959,3497.0,3496.5,2.86]
[1721646446774,2.85997,3496.6,3496.0,2.86036]
[1721646449073,0.06702154,3496.5,3496.0,2.86036]
[1721646450263,0.06702154,3496.5,3496.0,5.7207]
[1721646450449,0.06702154,3496.5,3496.0,2.86034]
[1721646451992,2.86031,3496.2,3495.5,2.3246]
[1721646452150,2.86031,3496.2,3495.4,2.86088]
[1721646452151,1.019,3495.9,3495.3,2.86091]
[1721646452349,2.4332,3496.1,3494.7,2.2786]
[1721646452350,1.019,3495.7,3494.7,2.2786]
[1721646452681,5.36077522,3495.6,3494.9,2.86125]
[1721646452852,2.49997522,3495.6,3495.1,2.86114]
[1721646453051,2.49997522,3495.6,3495.2,2.86106]
[1721646453775,2.49997522,3495.6,3495.0,2.86115]
[1721646456094,5.36072522,3495.6,3495.0,2.86115]
[1721646456304,2.86082,3495.5,3495.0,2.86115]
[1721646456453,2.92724282,3495.5,3495.0,2.86115]
[1721646457991,2.92724282,3495.5,3494.8,2.86133]
[1721646458697,2.86092,3495.4,3494.8,2.86133]
[1721646458869,2.92769919,3495.4,3494.8,2.86133]
[1721646459195,2.92769919,3495.4,3494.9,2.8613]
[1721646459552,2.92769919,3495.4,3494.7,1.019]
[1721646459854,2.92769919,3495.4,3494.8,2.86133]
[1721646460050,0.06677919,3495.4,3495.0,2.86122]
[1721646460253,5.29394,3495.6,3495.0,2.86122]
[1721646460446,0.06683555,3495.5,3494.8,2.86132]
[1721646460691,2.86095,3495.4,3494.8,2.86132]
[1721646460878,2.92774844,3495.4,3494.8,2.86132]
[1721646461868,2.86109,3495.2,3494.6,2.86152]
[1721646462312,0.06678335,3495.1,3494.6,2.86152]
[1721646462520,2.92793335,3495.1,3494.6,2.86152]
[1721646463312,0.06678335,3495.1,3494.6,2.86148]
[1721646463625,2.86107,3495.2,3494.6,2.86148]
[1721646463785,0.06622305,3495.0,3494.6,2.86148]
[1721646463982,0.06626018,3495.1,3494.7,2.86147]
[1721646464305,5.72221,3495.2,3494.6,2.86148]
[1721646464490,0.06622305,3495.0,3494.6,2.86148]
[1721646464682,2.86114,3495.1,3494.6,2.86148]
[1721646464882,0.06672838,3494.9,3494.6,2.86148]
[1721646465077,2.86114,3495.1,3494.6,2.86148]
[1721646465283,0.06669126,3494.8,3494.6,2.86148]
[1721646465478,2.86114,3495.1,3494.6,2.86148]
[1721646465711,0.06665414,3494.7,3494.6,2.86148]
[1721646465914,2.86107,3495.2,3494.6,2.86148]
[1721646466101,0.06665414,3494.7,3494.6,2.86148]
[1721646466328,2.86104,3495.3,3494.6,2.86148]
[1721646466475,0.06665414,3494.7,3494.4,2.86165]
[1721646466817,2.86114,3495.1,3494.4,2.86165]
[1721646466818,2.86127,3495.0,3494.4,2.86165]
[1721646467025,0.0660903,3494.6,3494.4,2.86165]
[1721646467179,2.86127,3495.0,3494.4,2.86165]
[1721646467677,0.06620171,3494.9,3494.4,2.86165]
[1721646469824,0.06620171,3494.9,3494.5,2.86161]
[1721646470048,0.06620171,3494.9,3494.6,2.86151]
[1721646470323,2.3856,3495.1,3494.6,2.86151]
[1721646470621,0.06610804,3494.8,3494.6,2.86151]
[1721646470821,2.3856,3495.1,3494.5,2.86163]
[1721646470822,5.24679,3495.1,3494.5,2.86163]
[1721646470994,0.0660709,3494.7,3494.5,2.86163]
[1721646471195,5.24679,3495.1,3494.5,2.86163]
[1721646471399,0.06640301,3494.6,3494.5,2.86163]
[1721646471591,5.24679,3495.1,3494.5,2.86163]
[1721646471826,0.06603376,3494.6,3494.5,2.86163]
[1721646472027,5.24679,3495.1,3494.5,2.86163]
[1721646472192,0.06603376,3494.6,3494.5,2.86163]
[1721646472396,2.3856,3495.1,3494.6,2.86148]
[1721646472822,5.24674,3495.1,3494.6,2.86148]
[1721646475098,5.24674,3495.1,3494.4,1.019]
[1721646475099,2.86124,3495.0,3494.4,3.88066]
[1721646475394,5.24674,3495.1,3494.2,2.86181]
[1721646475395,2.86144,3494.8,3494.2,2.86181]
[1721646476622,2.86147,3494.7,3494.2,2.86181]
[1721646477100,2.86169,3494.5,3493.9,2.86212]
[1721646479094,0.06630616,3494.4,3493.9,2.86212]
[1721646480422,0.06630616,3494.4,3494.0,2.86204]
[1721646480844,0.06630616,3494.4,3493.9,2.86211]
[1721646481761,2.92802616,3494.4,3493.9,2.86211]
[1721646482356,0.06630616,3494.4,3494.0,2.86204]
[1721646482557,2.86165,3494.5,3494.0,2.86204]
[1721646482855,0.06618614,3494.4,3494.0,2.86204]
[1721646487690,2.92790614,3494.4,3493.8,2.86216]
[1721646488198,0.06618614,3494.4,3493.9,2.86211]
[1721646488352,0.06618614,3494.4,3493.9,5.72419]
[1721646488552,0.06618614,3494.4,3494.0,2.86202]
[1721646489686,2.92790614,3494.4,3493.9,2.86208]
[1721646490767,2.92790614,3494.4,3493.9,5.72415]
[1721646491473,2.92790614,3494.4,3493.9,2.86207]
[1721646491677,2.92790614,3494.4,3493.9,5.72414]
[1721646491984,0.06618614,3494.4,3493.9,2.86207]
[1721646492185,5.23686,3494.6,3493.9,2.86207]
[1721646492388,0.06622652,3494.3,3493.9,2.86207]
[1721646492687,3.487226,3494.5,3494.0,2.86204]
[1721646492893,0.06618938,3494.2,3494.0,2.86204]
[1721646493100,0.06618938,3494.2,3493.7,3.88124]
[1721646493101,5.2369,3494.6,3494.1,2.86195]
[1721646494248,0.06630079,3494.5,3494.1,2.86195]
[1721646495187,0.06630079,3494.5,3494.1,5.72382]
[1721646495691,0.06630079,3494.5,3494.1,2.86191]
[1721646496421,0.06630079,3494.5,3494.1,2.8619]
[1721646497223,0.06630079,3494.5,3494.2,2.86186]
[1721646497376,0.06630079,3494.5,3494.1,2.86189]
[1721646497586,5.79655852,3494.9,3494.2,2.86182]
[1721646497795,1.58921702,3494.8,3494.2,2.86182]
[1721646498034,2.86149,3494.7,3494.2,2.86182]
[1721646498394,2.92790489,3494.6,3494.1,2.86195]
[1721646498907,0.06633489,3494.6,3494.1,2.86195]
[1721646499233,2.86147,3494.7,3494.1,2.86195]
[1721646499528,0.06633489,3494.6,3494.1,2.86195]
[1721646499748,0.06633489,3494.6,3494.0,2.862]
[1721646499749,0.06633489,3494.6,3494.2,2.86188]
[1721646501850,2.92789489,3494.6,3494.0,2.862]
[1721646502326,2.388,3494.5,3494.0,2.86198]
[1721646502526,0.06615548,3494.4,3494.1,2.86195]
[1721646510538,0.06615548,3494.4,3494.1,5.72385]
[1721646510743,0.06615548,3494.4,3494.2,2.86187]
[1721646519137,0.06615548,3494.4,3494.0,2.86204]
[1721646519474,0.06615548,3494.4,3494.1,2.86195]
[1721646527256,0.06615548,3494.4,3493.9,2.86213]
[1721646527584,0.06615548,3494.4,3494.0,2.48776498]
[1721646527760,0.06615548,3494.4,3494.1,0.99510599]
[1721646527955,0.06615548,3494.4,3493.9,2.86213]
[1721646528160,0.06615548,3494.4,3494.0,2.48776525]
[1721646528455,0.06615548,3494.4,3494.1,0.9951061]
[1721646528456,2.92788548,3494.4,3494.1,0.9951061]
[1721646528678,3.79969978,3494.3,3493.7,3.46253171]
[1721646528856,2.86187,3494.3,3493.8,2.48792171]
[1721646529075,0.06355243,3494.2,3493.7,3.46252171]
[1721646529403,0.06355243,3494.2,3493.8,5.35013961]
[1721646529574,2.86173,3494.4,3493.8,5.35013961]
[1721646529575,2.86173,3494.4,3493.9,0.99518784]
[1721646529771,0.06389099,3494.1,3493.8,2.86217]
[1721646529975,2.86173,3494.4,3493.9,3.85727637]
[1721646530199,0.06385385,3494.0,3493.9,2.86212]
[1721646530398,2.86173,3494.4,3493.9,3.85729002]
[1721646530707,0.06385385,3494.0,3493.9,2.86212]
[1721646531007,0.06344986,3494.0,3493.9,3.85728857]
[1721646531166,2.86173,3494.4,3493.9,3.85728857]
[1721646531361,0.06385385,3494.0,3493.9,2.86212]
[1721646531563,2.86173,3494.4,3493.9,3.85729088]
[1721646531761,0.06385385,3494.0,3493.9,2.86212]
[1721646531958,2.86173,3494.4,3493.9,3.85729425]
[1721646532201,2.86173,3494.4,3493.7,7.34373171]
[1721646532202,0.06385385,3494.0,3493.7,7.34373171]
[1721646532417,2.86181,3494.3,3493.8,5.35014838]
[1721646532595,2.86181,3494.3,3493.9,0.99517535]
[1721646532769,2.86181,3494.3,3493.8,2.86221]
[1721646533110,2.86181,3494.3,3493.9,0.99517477]
[1721646533264,4.00959073,3494.4,3493.7,4.48150171]
[1721646533463,2.8618,3494.3,3493.8,5.35013871]
[1721646533671,2.8618,3494.3,3493.9,0.99517548]
[1721646533905,2.8618,3494.3,3493.8,2.8622]
[1721646534063,2.8618,3494.3,3493.9,0.99517523]
[1721646534269,2.8618,3494.3,3493.8,2.8622]
[1721646534470,2.8618,3494.3,3493.9,0.99517548]
[1721646534805,2.8618,3494.3,3493.8,2.8622]
[1721646534977,2.8618,3494.3,3493.9,0.99517541]
[1721646535178,2.8618,3494.3,3493.8,2.8622]
[1721646535368,2.8618,3494.3,3493.9,0.99517487]
[1721646535573,2.8618,3494.3,3493.8,2.8622]
[1721646535889,2.8618,3494.3,3493.9,0.99517428]
[1721646536092,2.8618,3494.3,3493.8,2.8622]
[1721646538491,2.86188,3494.2,3493.7,1.019]
[1721646538819,1.14780073,3494.4,3493.6,6.32494171]
[1721646538820,2.4325,3494.1,3493.6,0.60029171]
[1721646539014,2.49638547,3494.1,3493.4,3.53684126]
[1721646539319,2.49638547,3494.1,3493.5,0.99526442]
[1721646539469,2.49638547,3494.1,3493.4,2.93654955]
[1721646539677,0.47161078,3494.0,3493.5,0.99527078]
[1721646539990,0.53548364,3494.0,3493.4,2.93654955]
[1721646540184,0.53548364,3494.0,3493.4,2.93650955]
[1721646540420,3.39753364,3494.0,3493.4,2.93650955]
[1721646541619,2.86216,3493.9,3493.4,2.93650955]
[1721646541789,0.06383572,3493.9,3493.4,2.93650955]
[1721646542515,2.92596572,3493.9,3493.4,2.93650955]
[1721646543070,0.06383572,3493.9,3493.4,2.93650955]
[1721646543275,0.06383572,3493.9,3493.4,5.79897955]
[1721646543475,0.06383572,3493.9,3493.4,2.93650955]
[1721646543695,2.86207,3494.0,3493.4,2.93650955]
[1721646544009,0.06385385,3493.9,3493.4,2.93650955]
[1721646545808,0.06385385,3493.9,3493.5,2.86245]
[1721646546780,0.06385385,3493.9,3493.4,0.07403955]
[1721646546976,0.06385385,3493.9,3493.4,2.93656955]
[1721646547218,2.92600385,3493.9,3493.4,2.93656955]
[1721646547691,0.06385385,3493.9,3493.4,2.93656955]
[1721646547906,0.06385385,3493.9,3493.4,5.79903955]
[1721646548109,0.06385385,3493.9,3493.4,2.93650955]
[1721646549276,2.92599385,3493.9,3493.4,0.07403955]
[1721646550224,2.86242,3493.6,3493.4,0.07403955]
[1721646550382,0.06362099,3493.5,3493.4,0.07403955]
[1721646550586,2.92607099,3493.5,3493.4,0.07403955]
[1721646552385,8.17422099,3493.5,3493.4,0.07403955]
[1721646553094,8.62298233,3493.5,3493.4,0.07403955]
[1721646553385,9.70725279,3493.5,3493.4,0.07403955]
[1721646555515,12.56970279,3493.5,3493.4,0.07403955]
[1721646556036,15.56970279,3493.5,3493.4,0.07403955]
[1721646556205,16.77042507,3493.5,3493.4,0.07403955]
[1721646558226,17.78942507,3493.5,3493.4,0.07403955]
[1721646558389,16.58870279,3493.5,3493.4,0.07403955]
[1721646560691,22.46615279,3493.5,3493.4,0.07403955]
[1721646560892,23.66687507,3493.5,3493.4,0.07403955]
[1721646561391,22.46615279,3493.5,3493.4,0.07403955]
[1721646561591,23.66687507,3493.5,3493.4,0.07403955]
[1721646562263,23.96424815,3493.5,3493.4,0.07403955]
[1721646564719,22.76352587,3493.5,3493.4,0.07403955]
[1721646565308,21.74452587,3493.5,3493.4,0.07403955]
[1721646565512,22.76352587,3493.5,3493.4,0.07403955]
[1721646571517,19.90107587,3493.5,3493.4,0.07403955]
[1721646576860,18.88207587,3493.5,3493.4,0.07403955]
[1721646577184,19.60370279,3493.5,3493.4,0.07403955]
[1721646581670,5.77887045,3493.0,3492.7,2.4908]
[1721646581874,0.05918872,3492.9,3492.7,3.026212]
[1721646582165,0.05918872,3492.9,3492.7,2.4908]
[1721646585778,0.05918872,3492.9,3492.4,2.86334]
[1721646585779,0.05918872,3492.9,3492.8,9.13346]
[1721646585951,0.05918872,3492.9,3492.8,10.33885626]
[1721646586147,2.91596045,3493.0,3492.9,8.1277]
[1721646586574,2.91596045,3493.0,3492.9,10.99065]
[1721646587405,2.91596045,3493.0,3492.9,8.1277]
[1721646593853,2.91596045,3493.0,3492.9,5.26475]
[1721646594053,2.96886359,3493.0,3492.9,5.26475]
[1721646595293,2.96886359,3493.0,3492.9,2.4018]
[1721646596599,2.96886359,3493.0,3492.7,5.36284]
[1721646598053,2.96886359,3493.0,3492.5,2.86325]
[1721646598354,2.96886359,3493.0,3492.6,2.86313]
[1721646598565,2.96886359,3493.0,3492.7,2.86311]
[1721646599113,5.83174359,3493.0,3492.5,2.86322]
[1721646599394,2.96886359,3493.0,3492.5,2.86321]
[1721646599699,2.96886359,3493.0,3492.6,2.86316]
[1721646600399,2.96886359,3493.0,3492.4,5.3611]
[1721646600757,2.96886359,3493.0,3492.6,2.86318]
[1721646601213,2.96886359,3493.0,3492.4,5.3611]
[1721646601214,5.83174359,3493.0,3492.4,5.3611]
[1721646601358,2.86303,3492.8,3492.3,2.86344]
[1721646601560,2.86303,3492.8,3492.2,2.86351]
[1721646601898,0.05269214,3492.7,3492.2,2.86351]
[1721646602099,0.05269214,3492.7,3492.3,2.86342]
[1721646602254,2.86303,3492.8,3492.3,2.86342]
[1721646602682,0.05255091,3492.7,3492.3,2.86342]
[1721646602878,2.86303,3492.8,3492.3,2.86342]
[1721646603077,9.13009281,3493.0,3492.1,2.2742]
[1721646603078,4.11497319,3492.7,3492.1,2.2742]
[1721646603278,1.25186319,3492.7,3492.2,2.86347]
[1721646604483,1.25186319,3492.7,3492.3,2.86343]